bitfinex/quotes_ETHUSD_20250925
["timestamp","ask_amount","ask_price","bid_price","bid_amount"]
[1758822073285,4.302056,3882.9,3879.9,0.4487]
[1758822073498,4.302056,3882.9,3879.8,0.002]
[1758822073499,3.0,3882.6,3880.2,0.70967186]
[1758822073811,0.792,3882.0,3879.8,0.002]
[1758822074013,0.792,3881.8,3880.7,2.5768463]
[1758822074324,3.3682594,3881.6,3880.7,2.57680733]
[1758822074494,3.3682594,3881.6,3880.9,0.1288]
[1758822074495,0.792,3881.4,3880.9,0.1288]
[1758822074823,5.515,3881.3,3880.9,0.1288]
[1758822074978,7.662,3881.2,3880.9,0.1288]
[1758822075428,7.662,3881.2,3880.1,0.6859]
[1758822075429,0.792,3881.1,3880.1,0.6859]
[1758822075734,0.792,3881.1,3880.7,0.1288]
[1758822076411,3.36859284,3881.1,3880.7,0.1288]
[1758822076711,0.227,3881.0,3880.7,0.1288]
[1758822076887,13.713717,3880.9,3880.1,0.002]
[1758822077088,3.36918674,3880.2,3880.1,0.002]
[1758822077406,6.36938601,3879.9,3879.8,0.002]
[1758822077605,2.57765175,3879.5,3877.8,0.6839]
[1758822077778,16.486717,3879.4,3877.8,0.2352]
[1758822078118,0.792,3878.8,3877.9,2.57869619]
[1758822078289,14.036488,3878.7,3877.5,0.41031804]
[1758822078489,6.150111,3878.6,3877.7,2.578787]
[1758822078702,6.150111,3878.6,3877.6,2.57891199]
[1758822078905,6.150111,3878.6,3877.5,0.41031804]
[1758822079089,0.792,3878.2,3877.5,0.41031804]
[1758822079305,4.8303,3878.1,3877.5,0.41031804]
[1758822079505,11.1303,3878.0,3877.5,0.41031804]
[1758822079715,5.511,3877.9,3877.5,3.42724145]
[1758822079883,5.511,3877.9,3877.5,0.84831804]
[1758822080219,5.511,3877.8,3877.7,2.57884828]
[1758822080514,5.511,3877.8,3877.5,0.41031804]
[1758822080920,3.0,3879.3,3877.5,0.41031804]
[1758822081083,3.59946548,3879.2,3877.6,0.438]
[1758822081284,7.658,3879.1,3877.7,2.80644828]
[1758822081582,7.658,3879.1,3877.7,0.2276]
[1758822081779,7.13508444,3879.1,3877.7,2.80644171]
[1758822081982,7.13508444,3879.1,3878.3,2.57844315]
[1758822082183,13.486717,3879.0,3877.7,0.2276]
[1758822082384,0.792,3878.8,3877.7,2.57884828]
[1758822082628,0.792,3878.8,3877.6,0.438]
[1758822082790,0.792,3878.8,3877.5,0.41031804]
[1758822082791,3.3702563,3878.6,3877.5,0.41031804]
[1758822082992,2.57872936,3877.9,3877.5,0.41031804]
[1758822083189,7.657,3877.8,3877.5,0.41031804]
[1758822083385,5.509,3877.7,3877.5,0.41031804]
[1758822083597,13.486717,3877.6,3877.5,0.41031804]
[1758822083818,13.11277849,3877.6,3877.5,0.41031804]
[1758822084017,1.0216,3877.6,3877.5,0.41031804]
[1758822084227,0.0871,3878.6,3877.5,0.41031804]
[1758822084432,0.792,3878.4,3877.7,2.57883529]
[1758822084814,5.507,3878.3,3877.7,0.02578848]
[1758822085136,2.148,3878.5,3878.2,2.57849627]
[1758822085349,5.507,3878.4,3878.1,2.57856512]
[1758822085638,5.507,3878.4,3877.5,0.41031804]
[1758822085941,0.2296,3878.9,3877.6,0.02578914]
[1758822086235,0.2296,3878.9,3878.4,2.57837964]
[1758822086236,5.506,3878.8,3878.4,2.57837964]
[1758822086440,0.0871,3879.8,3878.5,0.46378316]
[1758822086738,5.506,3880.1,3878.6,0.25338249]
[1758822087043,5.506,3880.0,3879.6,2.7063728]
[1758822087563,0.2296,3881.2,3880.2,2.5771604]
[1758822087741,7.653,3881.1,3879.7,0.6656]
[1758822087906,11.246941,3881.0,3879.9,2.57733536]
[1758822088107,7.652,3880.9,3880.2,2.57713498]
[1758822088329,14.97437015,3881.8,3879.7,0.438]
[1758822088330,7.652,3880.8,3879.7,0.438]
[1758822088544,0.2296,3881.3,3880.5,2.57697065]
[1758822088751,14.55051544,3881.8,3880.5,2.57693517]
[1758822088957,2.148,3881.2,3879.3,2.148]
[1758822089122,17.16685429,3881.1,3879.8,2.57743737]
[1758822089326,8.08064043,3881.1,3879.2,2.148]
[1758822089545,0.792,3880.8,3879.9,2.57737605]
[1758822089735,3.792,3880.6,3879.7,2.57750866]
[1758822090055,5.502,3880.5,3879.7,2.57750866]
[1758822090266,5.502,3880.5,3878.5,2.148]
[1758822090569,5.501,3880.4,3879.4,2.57771401]
[1758822090768,5.501,3880.4,3879.9,2.5773305]
[1758822090971,5.501,3880.4,3879.0,0.6656]
[1758822091125,6.682228,3880.3,3879.4,0.002]
[1758822091326,2.57733838,3880.0,3879.4,0.002]
[1758822091664,0.792,3879.8,3879.4,0.002]
[1758822091866,2.148,3879.7,3879.4,0.002]
[1758822092452,2.943803,3879.6,3879.4,0.002]
[1758822092632,5.7510061,3879.6,3879.4,0.002]
[1758822092960,11.252729,3879.5,3879.4,0.002]
[1758822093264,10.844007,3879.5,3879.4,0.002]
[1758822093465,7.647,3879.5,3879.4,0.002]
[1758822093832,2.148,3880.3,3879.4,0.6676]
[1758822094149,5.497,3880.2,3879.8,2.5774461]
[1758822094464,16.29357455,3880.1,3879.4,0.002]
[1758822094628,5.104649,3880.0,3879.4,0.002]
[1758822095046,2.213249,3880.0,3879.4,2.57970361]
[1758822095334,1.0216,3880.1,3879.4,0.002]
[1758822095335,2.807249,3879.9,3879.4,0.002]
[1758822095534,3.090433,3880.0,3879.4,0.002]
[1758822095771,1.0216,3880.1,3879.4,0.002]
[1758822095976,0.792,3880.1,3879.4,0.002]
[1758822096268,0.792,3880.1,3879.4,2.57966055]
[1758822096468,0.792,3880.1,3879.4,2.57971678]
[1758822096966,0.792,3880.1,3879.4,0.002]
[1758822097165,2.186749,3880.0,3879.4,2.579701]
[1758822097371,2.186749,3880.0,3879.4,0.002]
[1758822097680,3.0,3879.9,3879.4,0.002]
[1758822097835,15.08855394,3879.8,3879.4,0.002]
[1758822098166,2.564757,3879.7,3879.4,0.002]
[1758822098362,2.464487,3879.6,3879.4,0.002]
[1758822098529,7.85404967,3879.8,3879.4,0.002]
[1758822098736,0.792,3879.9,3879.4,0.002]
[1758822098934,0.792,3879.7,3879.4,0.002]
[1758822099544,2.148,3880.1,3879.5,2.5775998]
[1758822099847,5.49,3880.0,3879.6,0.1288]
[1758822100065,0.1288,3880.4,3879.6,0.1288]
[1758822100259,7.638,3880.3,3880.2,2.57718674]
[1758822100574,5.49,3880.3,3880.2,2.57718674]
[1758822100775,5.49,3880.3,3880.2,0.1288]
[1758822100936,5.7196,3880.3,3880.2,0.1288]
[1758822101140,5.49,3880.3,3880.2,0.1288]
[1758822101372,0.3584,3880.9,3880.2,0.1288]
[1758822101574,17.375095,3880.8,3880.2,0.1288]
[1758822101873,7.636,3880.8,3880.2,0.1288]
[1758822102173,7.636,3880.8,3880.5,0.1288]
[1758822102673,7.636,3880.8,3880.5,2.70577975]
[1758822103252,5.485,3880.8,3880.7,2.57682241]
[1758822103478,0.001,3881.2,3881.1,2.57658911]
[1758822103647,0.001,3881.2,3881.1,3.01458911]
[1758822103972,0.001,3881.2,3881.1,2.70538911]
[1758822104541,0.001,3881.2,3881.1,0.1288]
[1758822105380,0.001,3881.2,3881.1,2.70538911]
[1758822105783,0.001,3881.2,3881.1,0.1288]
[1758822107176,0.001,3881.2,3881.1,3.14338911]
[1758822107381,0.001,3881.2,3881.1,0.7944]
[1758822107676,0.001,3881.2,3881.1,0.1288]
[1758822107878,0.001,3881.2,3881.1,2.70538911]
[1758822108095,0.001,3881.2,3881.1,3.17508911]
[1758822108247,0.001,3881.2,3881.1,3.56989391]
[1758822108452,0.001,3881.2,3881.1,3.67292802]
[1758822108852,0.001,3881.6,3881.1,3.67292802]
[1758822108853,0.001,3881.6,3881.5,2.57632358]
[1758822109298,0.001,3881.6,3881.5,3.27332358]
[1758822109576,0.001,3881.6,3881.5,4.07310157]
[1758822110106,0.001,3881.6,3881.5,0.697]
[1758822110384,0.001,3881.6,3881.5,3.27332358]
[1758822111047,0.001,3881.6,3881.5,3.29908681]
[1758822111248,0.001,3881.6,3881.5,3.27332358]
[1758822111657,0.001,3881.6,3881.1,0.27053891]
[1758822111857,0.001,3881.6,3881.5,2.57632358]
[1758822112690,0.001,3881.6,3881.5,3.27332358]
[1758822112869,0.001,3881.6,3881.5,3.29908681]
[1758822113055,0.001,3881.6,3881.5,3.27332358]
[1758822113245,0.001,3881.6,3881.5,2.57632358]
[1758822113449,0.001,3881.6,3880.9,0.697]
[1758822113684,0.001,3881.6,3881.5,2.57632358]
[1758822113907,0.001,3881.6,3881.5,2.60208681]
[1758822114109,0.001,3881.6,3881.5,2.57632358]
[1758822114822,0.001,3881.6,3881.5,3.81435974]
[1758822115283,0.001,3881.6,3881.5,3.78859651]
[1758822115485,0.001,3881.6,3881.5,3.81435974]
[1758822115681,0.001,3881.6,3881.5,2.57632358]
[1758822115887,0.001,3881.6,3880.7,2.57685469]
[1758822116178,0.001,3881.6,3880.6,5.466]
[1758822116387,0.001,3881.6,3880.5,0.2273]
[1758822116629,0.001,3881.6,3879.2,2.57780732]
[1758822116630,5.482513,3881.5,3878.2,2.58049178]
[1758822116792,0.6777,3881.5,3879.8,2.57745244]
[1758822116995,4.481463,3881.4,3879.9,1.02444524]
[1758822117197,1.0265,3881.3,3880.3,2.5770623]
[1758822117399,6.4905,3881.3,3879.5,0.2273]
[1758822117814,3.792,3881.1,3879.4,0.002]
[1758822117984,3.792,3880.9,3879.4,0.002]
[1758822118183,14.51171325,3880.8,3879.4,0.002]
[1758822118397,7.609,3880.8,3880.1,2.57723482]
[1758822118584,7.609,3880.8,3880.2,2.57716129]
[1758822118784,7.609,3880.8,3880.5,0.1288]
[1758822119012,0.2345,3880.7,3880.5,0.1288]
[1758822119323,0.792,3881.5,3880.7,0.1288]
[1758822119519,3.953379,3881.5,3881.1,2.5765309]
[1758822119833,0.2345,3881.4,3881.2,2.70531699]
[1758822120185,0.792,3881.5,3881.2,0.1288]
[1758822120388,0.001,3881.6,3881.5,2.57632358]
[1758822120686,0.001,3881.6,3881.5,3.29908681]
[1758822120926,0.001,3881.6,3881.5,3.27332358]
[1758822121219,0.001,3881.6,3881.5,2.57632358]
[1758822121428,0.001,3881.6,3881.5,4.60027638]
[1758822121629,0.2345,3883.7,3881.9,2.57605811]
[1758822121831,0.001,3883.8,3882.0,2.57599175]
[1758822122015,0.001,3883.8,3883.7,2.57486417]
[1758822122328,0.001,3883.8,3882.4,2.147]
[1758822122503,0.001,3883.8,3882.5,0.4722859]
[1758822122703,0.2345,3883.7,3882.3,0.697]
[1758822122904,7.680599,3883.6,3882.2,7.603]
[1758822123111,0.792,3883.4,3881.9,0.2273]
[1758822123310,0.792,3883.2,3881.7,0.4697]
[1758822123632,0.792,3883.2,3879.9,2.57737811]
[1758822123633,3.792,3883.0,3881.3,2.147]
[1758822123816,0.792,3882.7,3881.3,2.57645634]
[1758822124019,0.4516,3883.5,3881.4,2.5896]
[1758822124223,0.4516,3883.5,3881.7,2.57619084]
[1758822124224,5.454,3883.3,3881.7,2.57619084]
[1758822124530,2.147,3883.7,3883.3,2.57512012]
[1758822124735,0.792,3883.6,3881.2,0.2531209]
[1758822124897,0.792,3883.4,3882.1,2.5759254]
[1758822125099,0.792,3883.4,3882.0,0.6745]
[1758822125431,0.792,3883.2,3881.5,0.2319]
[1758822125631,0.294,3883.5,3880.9,0.2319]
[1758822125632,0.792,3882.5,3880.9,0.2319]
[1758822125843,0.792,3882.5,3880.4,2.57705391]
[1758822125844,1.0,3882.0,3880.4,2.57705391]
[1758822125998,1.0,3881.7,3881.5,2.57626862]
[1758822126203,1.0,3881.7,3880.5,0.47240539]
[1758822126416,1.0,3881.9,3880.6,2.57692109]
[1758822126749,1.0,3881.7,3880.5,0.47240539]
[1758822127328,1.0,3882.1,3880.7,2.57685469]
[1758822127544,1.0,3882.0,3880.8,0.30750293]
[1758822127701,1.0,3881.7,3880.5,0.91500539]
[1758822128034,2.384,3882.4,3880.2,2.147]
[1758822128035,1.0,3881.5,3880.2,2.147]
[1758822128233,1.0,3881.5,3879.9,0.4426]
[1758822128234,1.0,3881.3,3879.5,2.147]
[1758822128409,1.0,3881.1,3881.0,2.5766555]
[1758822128609,1.0,3881.5,3881.0,0.02576655]
[1758822128932,7.593,3881.9,3881.7,2.5761906]
[1758822129135,1.0,3881.7,3881.6,2.57624875]
[1758822129437,2.147,3882.0,3881.9,2.57605811]
[1758822129735,1.0,3881.5,3879.9,7.9992761]
[1758822129935,2.8356,3882.0,3879.9,7.9992761]
[1758822129936,0.6886,3882.0,3881.6,2.57625721]
[1758822130122,2.147,3882.0,3881.3,2.57645634]
[1758822130436,2.147,3882.0,3881.9,2.57599603]
[1758822130605,2.147,3882.0,3880.5,2.57697196]
[1758822130606,1.0,3880.6,3879.3,0.4426]
[1758822130807,1.0,3880.6,3880.5,0.1288]
[1758822131036,1.0,3880.6,3880.5,2.7057875]
[1758822131353,1.0,3880.6,3880.5,0.1288]
[1758822131520,1.0,3880.6,3880.5,2.7057875]
[1758822131904,2.147,3880.9,3880.5,0.1288]
[1758822132111,2.147,3880.9,3880.0,2.57727384]
[1758822132112,0.237,3881.4,3881.2,2.5765194]
[1758822132313,0.792,3881.7,3881.0,0.02576655]
[1758822132522,1.0,3881.5,3881.3,0.1288]
[1758822133045,1.0,3881.1,3879.6,0.4426]
[1758822133204,1.0,3881.4,3881.3,2.57645634]
[1758822133555,1.0,3881.5,3881.4,2.57638996]
[1758822133725,1.0,3881.5,3880.4,0.4426]
[1758822133922,1.0,3881.3,3880.4,0.4426]
[1758822134258,1.0,3881.3,3879.9,0.4426]
[1758822134259,5.86087,3881.2,3879.9,0.4426]
[1758822134410,1.0,3880.9,3880.8,2.57678829]
[1758822134719,1.0,3881.5,3880.8,3.09215453]
[1758822135047,2.147,3881.6,3881.4,2.57638849]
[1758822135252,1.0,3881.5,3881.4,2.57638849]
[1758822135616,1.0,3881.5,3881.3,2.57643927]
[1758822135846,1.0,3881.5,3880.5,0.4426]
[1758822136150,1.0,3881.2,3880.0,0.4426]
[1758822136322,0.792,3881.4,3880.7,2.57681239]
[1758822136323,1.0,3880.9,3880.7,2.57681239]
[1758822136510,1.0,3880.9,3879.4,5.16728604]
[1758822136710,1.0,3880.6,3879.6,2.57758531]
[1758822137030,1.0,3880.4,3880.0,2.57725578]
[1758822137233,1.0,3880.4,3880.1,2.57720194]
[1758822137446,1.4516,3880.4,3879.0,2.147]
[1758822137645,1.0,3880.2,3880.1,2.57725316]
[1758822138163,1.0,3879.6,3878.9,0.4426]
[1758822138438,1.0,3879.6,3878.8,2.57811694]
[1758822138616,1.0,3879.6,3878.8,0.25801169]
[1758822138822,1.0,3879.6,3878.4,2.147]
[1758822139032,1.0,3879.6,3879.5,2.57765175]
[1758822140030,1.0,3879.8,3878.7,2.57818341]
[1758822140259,1.0,3879.8,3879.7,2.57751888]
[1758822140422,1.0,3880.1,3880.0,2.57731958]
[1758822140622,2.147,3880.8,3880.5,2.57697057]
[1758822140857,7.577,3880.8,3879.5,0.453]
[1758822141154,7.577,3880.8,3880.4,2.57703617]
[1758822141155,7.76116152,3880.8,3880.4,2.57703617]
[1758822141354,1.0,3880.6,3880.3,2.57712032]
[1758822141558,1.0,3880.4,3879.5,0.453]
[1758822141758,1.0,3879.3,3878.1,0.453]
[1758822141928,1.0,3879.3,3878.3,2.57840478]
[1758822142256,1.0,3879.3,3879.0,2.57793803]
[1758822142464,1.0,3879.1,3879.0,2.5779204]
[1758822142656,1.0,3879.3,3879.2,2.5778511]
[1758822142837,1.0,3879.3,3878.6,2.58020588]
[1758822142838,1.0,3879.3,3879.1,2.57789993]
[1758822143033,1.0,3879.1,3878.6,0.002]
[1758822143356,1.0,3878.8,3878.6,0.002]
[1758822143554,1.0,3878.8,3878.7,2.57818341]
[1758822143855,0.4602,3879.4,3878.7,2.57818341]
[1758822143856,1.0,3879.2,3878.9,2.57805047]
[1758822144072,1.0,3879.2,3879.1,2.57791755]
[1758822144370,1.0,3878.7,3878.6,2.5802497]
[1758822144737,1.0,3879.1,3878.6,0.1308]
[1758822144942,1.0,3878.7,3878.6,0.1308]
[1758822145871,6.8842,3878.7,3878.6,0.1308]
[1758822146075,1.0,3878.3,3878.2,0.002]
[1758822146278,6.94,3878.3,3878.2,0.002]
[1758822146584,1.0,3878.3,3878.2,0.1308]
[1758822146890,16.497044,3878.3,3878.2,0.1308]
[1758822147054,14.129669,3878.3,3878.2,0.002]
[1758822147242,6.3391,3878.3,3878.2,0.002]
[1758822147438,5.4821,3878.3,3878.2,0.002]
[1758822147704,20.75526632,3878.3,3878.2,0.002]
[1758822147979,18.176817,3878.3,3878.2,0.002]
[1758822148145,20.75526632,3878.3,3878.2,0.002]
[1758822148341,18.176817,3878.3,3878.2,0.002]
[1758822148773,20.69497925,3878.3,3878.2,0.002]
[1758822148964,18.176817,3878.3,3878.2,0.002]
[1758822149470,8.690478,3878.3,3878.2,0.002]
[1758822149674,13.638888,3878.3,3878.2,0.002]
[1758822149872,1.792,3878.1,3878.0,0.002]
[1758822150038,8.521006,3878.1,3878.0,0.002]
[1758822150238,6.437479,3878.1,3878.0,0.002]
[1758822150576,7.127579,3878.1,3878.0,0.002]
[1758822150774,12.228463,3878.1,3878.0,0.002]
[1758822151075,2.6109,3878.1,3878.0,0.002]
[1758822151255,2.381,3878.1,3878.0,0.002]
[1758822151480,12.241679,3878.1,3878.0,0.002]
[1758822151797,12.864,3878.1,3878.0,0.002]
[1758822152096,8.356,3878.1,3878.0,0.002]
[1758822152398,9.356,3878.1,3878.0,2.58064878]
[1758822152626,1.0,3878.1,3878.0,2.58064878]
[1758822152905,1.0,3877.9,3877.8,0.002]
[1758822153261,2.149,3878.4,3877.8,0.1308]
[1758822153463,1.0,3877.9,3877.8,0.1308]
[1758822153762,6.413,3877.9,3877.8,0.002]
[1758822153966,6.413,3877.9,3877.8,0.1308]
[1758822154197,7.6652,3877.9,3877.8,0.002]
[1758822154362,8.66162,3877.9,3877.8,0.002]
[1758822154566,11.700905,3877.9,3877.8,0.002]
[1758822154765,12.300139,3877.9,3877.8,0.002]
[1758822155065,12.164579,3877.9,3877.8,0.002]
[1758822155361,1.0,3877.9,3877.8,2.58078178]
[1758822155726,5.41,3877.9,3877.8,2.58078178]
[1758822155996,6.409,3877.9,3877.8,0.002]
[1758822156196,21.226717,3877.9,3877.8,0.002]
[1758822156495,4.792,3877.6,3877.5,0.41031804]
[1758822156696,10.2,3877.6,3877.5,0.41031804]
[1758822156896,0.792,3877.5,3877.0,0.1288]
[1758822157102,0.792,3877.5,3875.4,0.231]
[1758822157103,1.0,3876.7,3876.6,0.1288]
[1758822157395,1.0,3876.7,3875.7,0.453]
[1758822157396,1.0,3876.3,3876.2,2.33927022]
[1758822157613,5.407,3879.1,3876.2,8.73192274]
[1758822157763,18.37733564,3879.0,3876.3,0.684]
[1758822157962,18.37733564,3879.0,3877.9,2.57869668]
[1758822157963,3.0,3878.8,3877.9,2.57869668]
[1758822158206,3.0,3878.6,3877.3,2.57906888]
[1758822158371,17.6226352,3878.3,3876.6,0.453]
[1758822158575,9.889455,3878.2,3876.6,0.453]
[1758822158782,0.792,3878.0,3877.7,2.57880414]
[1758822158992,0.792,3877.8,3876.6,0.453]
[1758822159166,0.792,3877.6,3876.3,0.231]
[1758822159361,0.792,3877.4,3876.2,0.49192274]
[1758822159566,5.405,3877.3,3877.2,2.57918085]
[1758822160494,5.405,3877.3,3877.1,2.57922879]
[1758822160707,5.405,3877.3,3876.7,2.57944757]
[1758822160908,0.792,3877.2,3876.6,2.57952474]
[1758822161063,2.941,3877.2,3875.9,2.58002302]
[1758822161266,2.941,3877.2,3876.7,2.57945948]
[1758822161462,2.149,3877.2,3876.1,0.453]
[1758822161767,2.149,3877.4,3877.3,2.57911433]
[1758822162000,5.401,3877.4,3877.3,2.57910827]
[1758822162318,2.017324,3878.5,3877.0,0.453]
[1758822162621,2.017324,3878.5,3876.3,2.149]
[1758822162622,5.401,3878.4,3877.3,0.453]
[1758822162895,5.4,3878.3,3877.7,2.57880117]
[1758822163119,5.4,3878.3,3877.0,0.453]
[1758822163336,5.4,3878.3,3877.9,2.57865614]
[1758822163466,5.4,3878.3,3877.1,2.57924737]
[1758822163669,5.4,3878.3,3877.2,0.30322474]
[1758822163971,5.4,3878.3,3877.4,2.57902927]
[1758822164203,5.4,3878.3,3877.2,0.30322474]
[1758822164574,5.4,3878.3,3877.0,0.453]
[1758822164575,0.792,3878.2,3877.0,0.453]
[1758822164776,0.792,3878.0,3876.4,2.149]
[1758822164980,0.792,3878.5,3877.8,2.57873735]
[1758822165299,3.792,3878.3,3877.5,2.57897986]
[1758822165496,3.792,3878.3,3877.0,0.453]
[1758822165696,3.157007,3878.2,3877.8,2.57875849]
[1758822165866,3.157007,3878.2,3877.0,0.453]
[1758822165867,3.963207,3878.2,3877.0,0.453]
[1758822166074,4.844007,3878.1,3877.0,0.453]
[1758822166372,0.4602,3878.2,3877.1,2.57924737]
[1758822166575,0.792,3878.3,3877.2,0.30322474]
[1758822166775,0.4602,3878.7,3877.0,3.03228592]
[1758822166976,2.941,3878.6,3878.3,2.57844896]
[1758822167201,2.941,3878.6,3877.1,3.05803984]
[1758822167202,5.394,3878.5,3878.2,0.1288]
[1758822167400,0.001,3878.4,3878.2,2.70730714]
[1758822167605,0.001,3878.4,3878.2,2.70729437]
[1758822167832,0.001,3878.4,3878.2,0.1288]
[1758822167974,0.001,3878.4,3878.3,2.57844932]
[1758822168177,0.001,3878.4,3878.2,0.1288]
[1758822168575,0.001,3878.4,3878.2,2.7073076]
[1758822168884,0.001,3878.4,3878.3,3.30883381]
[1758822169071,0.001,3878.4,3878.3,2.57844932]
[1758822169467,0.001,3878.4,3878.3,3.30883381]
[1758822170007,0.001,3878.4,3878.3,3.28304932]
[1758822170244,0.001,3878.4,3878.3,3.05034932]
[1758822170410,0.001,3878.4,3877.8,0.2327]
[1758822170575,0.792,3878.2,3877.3,0.002]
[1758822170775,3.089,3878.1,3877.3,0.002]
[1758822171177,3.089,3878.1,3877.5,2.57891948]
[1758822171505,3.089,3878.1,3877.3,0.002]
[1758822171912,3.089,3878.1,3877.7,2.57879614]
[1758822172207,3.089,3878.1,3877.3,0.002]
[1758822172208,0.6548,3878.0,3877.3,0.002]
[1758822172383,0.6548,3878.0,3877.7,2.57878187]
[1758822172585,3.089,3878.1,3877.3,0.002]
[1758822172787,3.089,3878.1,3877.8,2.57871589]
[1758822173109,0.6548,3878.0,3877.3,2.58111163]
[1758822173308,0.6548,3878.0,3877.7,2.57878617]
[1758822173509,3.089,3878.1,3877.3,0.002]
[1758822173712,3.089,3878.1,3877.8,2.5787489]
[1758822173898,3.089,3878.1,3877.6,2.57890696]
[1758822174111,3.089,3878.1,3877.3,0.002]
[1758822174425,0.001,3878.4,3878.0,2.57863637]
[1758822174724,0.001,3878.4,3878.3,2.57844932]
[1758822174894,0.001,3878.4,3878.3,2.60423381]
[1758822175095,0.001,3878.4,3878.3,3.07613381]
[1758822175325,0.001,3878.4,3878.3,3.05034932]
[1758822176000,0.001,3878.4,3878.3,3.07613381]
[1758822176228,0.001,3878.4,3878.3,3.90008709]
[1758822176723,0.001,3878.4,3878.3,3.8743026]
[1758822177991,0.001,3878.4,3878.3,2.60423381]
[1758822178302,0.001,3878.4,3877.9,0.4719]
[1758822178508,0.001,3878.4,3878.3,2.57844932]
[1758822178899,0.001,3878.4,3878.3,3.17914932]
[1758822179094,0.001,3878.4,3878.3,3.20493381]
[1758822179310,0.001,3878.4,3878.3,3.63846287]
[1758822179513,0.001,3878.4,3878.3,3.87116287]
[1758822180620,0.001,3878.4,3878.3,3.89694736]
[1758822180934,0.001,3878.4,3878.3,6.89694736]
[1758822181231,0.001,3878.8,3878.3,6.89694736]
[1758822181232,0.001,3878.8,3878.7,2.57818341]
[1758822181398,0.001,3880.9,3880.8,2.57678829]
[1758822181603,0.4306,3880.9,3879.8,5.372]
[1758822181816,0.4306,3880.9,3880.8,0.1288]
[1758822182021,0.6558,3880.9,3880.8,0.1288]
[1758822182209,2.8048,3880.9,3880.8,0.1288]
[1758822182834,2.8048,3880.9,3880.8,2.70558829]
[1758822183162,2.8048,3880.9,3880.8,0.1288]
[1758822183440,0.792,3880.8,3880.5,0.1288]
[1758822183645,9.652425,3880.8,3880.2,0.1288]
[1758822183819,0.792,3880.6,3880.2,0.11273242]
[1758822184140,0.6807,3880.5,3878.7,0.55320469]
[1758822184336,0.6807,3880.5,3878.9,2.57805047]
[1758822184337,7.19,3880.4,3878.9,2.57805047]
[1758822184537,7.19,3880.4,3879.8,2.57740609]
[1758822184704,7.8707,3880.5,3879.9,2.57734048]
[1758822185106,6.159,3880.4,3878.3,0.45931355]
[1758822185306,19.534417,3880.4,3878.2,2.148]
[1758822185539,0.792,3880.2,3878.3,2.87814932]
[1758822185712,7.761406,3880.1,3879.5,2.57760601]
[1758822185907,7.761406,3880.1,3878.3,0.2997]
[1758822185908,1.03,3880.0,3878.3,0.2997]
[1758822186241,0.4427,3879.9,3878.1,0.4515]
[1758822186441,0.4427,3879.9,3878.2,2.5785158]
[1758822186620,0.4427,3879.9,3878.3,2.57844932]
[1758822186944,0.4427,3879.9,3879.2,2.5778511]
[1758822187236,0.4427,3879.9,3879.3,2.57778186]
[1758822187540,0.4427,3879.9,3878.2,2.5785158]
[1758822187844,0.4427,3879.9,3877.7,2.57882471]
[1758822187845,0.792,3879.7,3877.6,2.5995]
[1758822188033,0.792,3879.5,3877.7,2.57884828]
[1758822188220,0.792,3879.5,3877.8,2.57878178]
[1758822188420,0.792,3879.5,3879.0,2.57791898]
[1758822188645,0.6807,3879.4,3879.0,2.57791898]
[1758822188849,2.8287,3879.3,3878.7,2.57813235]
[1758822189066,2.8287,3879.3,3878.8,2.57806382]
[1758822189269,0.6807,3879.2,3877.6,0.4515]
[1758822189472,13.375417,3879.2,3877.7,0.81905]
[1758822189650,0.6807,3879.2,3878.5,2.57825605]
[1758822189972,5.980618,3879.1,3877.4,2.57904781]
[1758822190157,5.980618,3879.1,3877.3,0.002]
[1758822190158,0.792,3878.9,3877.3,0.002]
[1758822190366,7.506,3878.8,3877.4,0.30327467]
[1758822190675,7.506,3878.8,3877.3,0.231]
[1758822190676,7.506,3878.8,3878.4,2.57837846]
[1758822191065,8.1867,3878.8,3878.3,2.57842851]
[1758822191261,7.506,3878.8,3877.3,0.231]
[1758822191466,0.792,3878.6,3877.3,0.002]
[1758822191840,0.792,3878.6,3877.9,2.57866277]
[1758822192176,1.68987,3878.6,3877.9,2.57866277]
[1758822192380,1.68987,3878.6,3877.3,0.002]
[1758822192381,0.792,3878.3,3877.3,0.002]
[1758822192671,0.792,3878.1,3877.3,0.002]
[1758822192873,5.355,3878.0,3877.6,2.57886523]
[1758822193176,3.6217,3877.9,3877.3,0.002]
[1758822193880,0.792,3877.7,3877.3,0.002]
[1758822194043,0.792,3877.5,3877.3,0.002]
[1758822194376,0.17613568,3877.5,3877.3,0.002]
[1758822194552,13.375417,3877.4,3877.3,0.002]
[1758822194741,3.6807,3877.4,3877.3,0.002]
[1758822194946,1.4727,3877.4,3877.3,0.002]
[1758822195145,0.6807,3877.4,3877.3,0.002]
[1758822195341,2.149,3877.9,3877.8,2.57878178]
[1758822195581,2.149,3877.9,3877.3,0.002]
[1758822195582,5.351,3878.3,3878.2,2.578506]
[1758822195945,5.35,3878.3,3877.3,0.4535]
[1758822196149,19.80703688,3879.5,3878.4,2.57838283]